Cogmind - Beta 11.1 @@@ ROGUE MODE // 2022.07.03 @ 02:02:23 Player: Jezoensis Result: Self-destructed Performance ------------- Evolutions (4) 2000 Regions Visited (10) 2000 Robots Destroyed (55) 275 Value Destroyed (1577) 1577 Prototype IDs (24) 480 Alien Tech Used (0) 0 Bonus (864) 864 TOTAL SCORE: 7196 Bonus ------- High Alert Combat Kills 64 Entered DSFs 500 Aligned with FarCom 300 Cogmind --------- Core Integrity 645/850 Matter 213/300 Energy 91/100 System Corruption 2% Temperature Cool (0) Movement Core (50) Location -6/Factory Parts ------- > --- POWER (1) -------- (None) > --- PROPULSION (4) --- (None) > --- UTILITY (7) ------ (None) > --- WEAPON (3) ------- (None) > --- INVENTORY (5) ---- Fission Core Transmission Jammer Plasma Cannon Peak State ------------ > --- POWER ------------ Light Fission Core > --- PROPULSION ------- Light Treads Light Treads Improved Treads Wheel > --- UTILITY ---------- Structural Scanner Advanced Signal Interpreter Terrain Scan Processor 0b10 Alert Chip Improved Melee Analysis Suite Improved Melee Analysis Suite > --- WEAPON ----------- Chainsword Chainsword Chainsword > --- INVENTORY -------- Fission Core Transmission Jammer Plasma Cannon [Rating: 45] Favorites ----------- Power Deuterium Engine Engine Deuterium Engine Power Core Light Fission Core Propulsion Wheel Treads Light Treads Wheel Wheel Utility Large Storage Unit Device Structural Scanner Storage Large Storage Unit Processor Improved Terrain Scan Processor Hackware Hacking Suite Protection Improved Medium Armor Plating Weapon Heavy Assault Rifle Energy Gun Field Laser Ballistic Gun Heavy Assault Rifle Launcher Grenade Launcher Special Weapon Mining Laser Slashing Weapon Axe Build | -11 -10 -10 -10 -9 -8 -7 -7 -6 -6 -6 ------- Run | Scr Mat Min Exi Min Mat Fac DSF Fac Was Fac Slots Evolved 8 | . . . . . 4 2 . 2 . . Power . | . . . . . . . . . . . Propulsion 2 | . . . . . 1 . . 1 . . Utility 5 | . . . . . 2 2 . 1 . . Weapon 1 | . . . . . 1 . . . . . Parts Attached 136 | 7 21 8 3 10 37 5 12 8 8 17 Power 7 | 1 2 . . 1 2 . . . . 1 Engine 6 | 1 2 . . 1 2 . . . . . Core 1 | . . . . . . . . . . 1 Reactor . | . . . . . . . . . . . Propulsion 46 | 2 4 4 . 7 13 1 5 3 3 4 Treads 25 | . 1 2 . 2 9 1 3 2 2 3 Leg . | . . . . . . . . . . . Wheel 21 | 2 3 2 . 5 4 . 2 1 1 1 Hover . | . . . . . . . . . . . Flight . | . . . . . . . . . . . Utility 40 | 2 3 2 . . 12 4 3 3 2 9 Device 15 | 1 1 2 . . 5 1 1 1 . 3 Storage 5 | 1 2 . . . . . . . 2 . Processor 9 | . . . . . 2 1 1 . . 5 Hackware 3 | . . . . . 1 . . 1 . 1 Protection 8 | . . . . . 4 2 1 1 . . Artifact . | . . . . . . . . . . . Weapon 43 | 2 12 2 3 2 10 . 4 2 3 3 Energy Gun 4 | . . . . . 2 . 2 . . . Energy Cannon . | . . . . . . . . . . . Ballistic Gun 21 | 2 7 1 1 1 6 . 1 1 1 . Ballistic Cannon . | . . . . . . . . . . . Launcher 7 | . 3 1 1 1 1 . . . . . Special Weapon 4 | . 2 . 1 . 1 . . . . . Impact Weapon . | . . . . . . . . . . . Slashing Weapon 7 | . . . . . . . 1 1 2 3 Piercing Weapon . | . . . . . . . . . . . Special Melee Weapon . | . . . . . . . . . . . Unidentified Prototypes 1 | . . 1 . . . . . . . . Parts Lost 13 | . . . . 1 1 . . . 7 4 Power 1 | . . . . . . . . . . 1 Propulsion 7 | . . . . . 1 . . . 4 2 Utility 2 | . . . . . . . . . 2 . Weapon 3 | . . . . 1 . . . . 1 1 Highest Loss Streak 7 | . . . . 1 1 . . . 7 3 To Critical Strikes . | . . . . . . . . . . . Average Slot Usage (%) 93 | . 99 99 80 100 99 99 98 99 87 53 Engine 9 | . 14 14 14 14 9 7 7 6 5 . Treads 6 | . . . . 2 11 7 9 12 4 15 Wheel 18 | . 27 27 28 26 15 15 12 13 16 3 Device 12 | . 14 13 14 14 9 7 13 20 17 6 Storage 9 | . 14 14 14 14 9 7 7 6 6 . Processor 7 | . . . . . 8 15 15 13 12 20 Hackware 2 | . . . . . 7 7 . 3 5 . Protection 1 | . . . . . 1 6 7 2 . . Energy Gun 2 | . . . . . 7 7 4 . . . Ballistic Gun 16 | . 22 28 7 21 18 15 17 15 15 . Slashing Weapon 1 | . . . . . . . . 3 . 5 Naked Turns 7 | . . . . . . . . . 1 6 Heaviest Build 49 | 13 37 37 37 37 47 48 48 49 42 17 Greatest Support 40 | 20 26 20 20 20 40 26 26 26 36 10 Greatest Overweight (x) 4 | . 1 1 1 1 4 1 2 1 2 1 Average Overweight (x) . | . . 1 1 1 . 1 1 1 . . Largest Inventory Capacity 15 | 8 15 15 15 15 15 15 15 15 15 5 Average Capacity 13 | 6 11 15 15 15 15 15 15 15 13 5 Most Carried 15 | 7 15 15 15 15 15 15 15 15 15 5 Average Carried 12 | 4 10 14 14 14 14 14 14 14 12 4 Final Capacity 15 | 8 15 15 15 15 15 15 15 15 5 5 Final Carried 15 | 7 15 15 14 14 15 14 15 15 5 3 Class Distribution -------------------- 49% | Mutant 20% | Skirmisher 18% | Scavenger-Skirmisher 7% | Scavenger-Assassin Dominant Class ---------------- Mutant | -10/Materials Mutant | -10/Mines Mutant | -10/Exiles Mutant | -9/Mines Scavenger-Skirmisher | -8/Materials Skirmisher | -7/Factory Skirmisher | -7/DSF Scavenger-Assassin | -6/Factory Skirmisher | -6/Waste Mutant | -6/Factory Resources | -11 -10 -10 -10 -9 -8 -7 -7 -6 -6 -6 ----------- Run | Scr Mat Min Exi Min Mat Fac DSF Fac Was Fac Matter Collected 2431 | 290 282 64 306 249 649 49 141 217 . 184 Remotely . | . . . . . . . . . . . Salvage Created 1803 | 97 244 71 . 54 575 49 158 357 . 198 Parts 107 | 13 16 7 . 4 26 3 10 14 . 14 Haulers Intercepted 3 | . 1 . . . . 1 . . . 1 Recyclers Shooed 1 | . . . . . . . . 1 . . Parts Field Recycled . | . . . . . . . . . . . Retrieved Matter . | . . . . . . . . . . . Parts Self-Destructed . | . . . . . . . . . . . Prevented . | . . . . . . . . . . . Kills | -11 -10 -10 -10 -9 -8 -7 -7 -6 -6 -6 ------- Run | Scr Mat Min Exi Min Mat Fac DSF Fac Was Fac Combat Hostiles Destroyed 31 | . 8 6 . 2 6 . 3 3 . 3 Guns 13 | . 1 3 . 1 5 . 3 . . . AOE 18 | . 7 3 . 1 1 . . 3 . 3 Classes Destroyed 13 | 2 4 1 . 1 2 . 1 1 . 1 Worker 5 | . 3 1 . 1 . . . . . . Builder 5 | . . . . . . . . . . 5 Tunneler 4 | 3 . . . 1 . . . . . . Hauler 3 | . 1 . . . . 1 . . . 1 Recycler 7 | 1 . . . . 4 . . 2 . . Watcher 2 | . 1 . . . 1 . . . . . Swarmer 6 | . . 6 . . . . . . . . Grunt 16 | . 8 . . . 2 . 2 2 . 2 Brawler 1 | . . . . . 1 . . . . . Duelist 1 | . . . . . . . . 1 . . Sentry 4 | . . . . . 3 . . . . 1 Heavy 1 | . . . . . . . 1 . . . Assembled 2 | . . . . 2 . . . . . . Best Kill Streak 8 | 4 6 4 . 2 3 1 2 2 . 8 Combat Bots Only 4 | . 4 3 . 1 3 . 2 2 . 3 Max Kills in Single Turn 5 | 1 3 4 . 1 1 1 1 2 . 5 Gunslinging . | . . . . . . . . . . . Exploded 3 | . 2 3 . 1 1 . . 2 . 3 Melee . | . . . . . . . . . . . Uniques/NPCs Destroyed . | . . . . . . . . . . . Combat | -11 -10 -10 -10 -9 -8 -7 -7 -6 -6 -6 -------- Run | Scr Mat Min Exi Min Mat Fac DSF Fac Was Fac Damage Taken 2310 | . 387 79 . 395 301 . 277 130 186 555 Core 513 | . 93 7 . 97 56 . 55 12 90 103 Absorbed by Shields 179 | . . . . . . . 99 54 26 . Core Remaining (%) 75 | 100 . . . 21 89 . 92 . . . Volleys Fired 90 | 6 23 6 . 9 28 1 8 9 . . Largest 3 | 2 2 2 . 2 3 3 3 3 . . Hottest 111 | 40 100 46 . 53 111 111 111 71 . . Shots Fired 210 | 12 35 11 . 18 83 3 21 27 . . Gun 188 | 12 20 10 . 15 80 3 21 27 . . Cannon . | . . . . . . . . . . . Launcher 20 | . 13 1 . 3 3 . . . . . Special 2 | . 2 . . . . . . . . . Kinetic 160 | 12 20 10 . 15 58 2 16 27 . . Thermal 30 | . 2 . . . 22 1 5 . . . Explosive 20 | . 13 1 . 3 3 . . . . . Electromagnetic . | . . . . . . . . . . . Robot Hit Streak 19 | 7 11 15 . 3 9 6 19 11 . . Robot Miss Streak 6 | 1 3 2 . 3 6 . 1 2 . . Penetration Max . | . . . . . . . . . . . Secondary Targets . | . . . . . . . . . . . Shots Hit Robots 145 | 9 24 7 . 8 50 3 18 25 . 1 Core Hits 108 | 5 22 9 . 7 23 1 8 19 . 14 Critical Kills . | . . . . . . . . . . . Critical Parts Destroyed . | . . . . . . . . . . . Critical Strikes . | . . . . . . . . . . . Melee Attacks 19 | . . . . . . . 3 10 . 6 Impact . | . . . . . . . . . . . Slashing 19 | . . . . . . . 3 10 . 6 Piercing . | . . . . . . . . . . . Sneak Attacks 2 | . . . . . . . . 1 . 1 Combat Hostiles . | . . . . . . . . . . . Follow-up Attacks . | . . . . . . . . . . . Damage Inflicted 5493 | 116 863 294 . 232 966 49 299 1004 . 1670 Guns 1982 | 116 200 92 . 88 774 49 299 364 . . Cannons . | . . . . . . . . . . . Explosions 3367 | . 663 197 . 144 192 . . 583 . 1588 Melee 133 | . . . . . . . . 57 . 76 Ramming 11 | . . 5 . . . . . . . 6 Kinetic 1617 | 116 200 92 . 88 507 32 218 364 . . Thermal 1792 | . . . . . 267 17 81 238 . 1189 Explosive 1729 | . 663 197 . 144 192 . . 174 . 359 Electromagnetic 211 | . . . . . . . . 171 . 40 Impact . | . . . . . . . . . . . Slashing 133 | . . . . . . . . 57 . 76 Piercing . | . . . . . . . . . . . Highest Corruption 2 | . 2 2 2 2 . . . . . 2 Average Corruption 1 | . 1 2 2 2 . . . . . 1 Corruption Purged . | . . . . . . . . . . . Corruption Blocked . | . . . . . . . . . . . Effects 13 | . 1 4 5 3 . . . . . . Message Errors 6 | . . 2 3 1 . . . . . . Matter Fused 2 | . . . 1 1 . . . . . . Energy Discharges 4 | . 1 2 1 . . . . . . . Data Loss (minor) 1 | . . . . 1 . . . . . . Overload Shots . | . . . . . . . . . . . Overflow Damage 334 | . 6 . . . . . . . . 328 Projectiles . | . . . . . . . . . . . Explosions 334 | . 6 . . . . . . . . 328 Melee . | . . . . . . . . . . . Knockbacks . | . . . . . . . . . . . Impact . | . . . . . . . . . . . Kinetic . | . . . . . . . . . . . Secondary . | . . . . . . . . . . . Self-Inflicted Damage 457 | . 25 2 . 104 . . . . . 326 Shots 8 | . 1 . . 3 . . . . . 4 Rammed 4 | . . 1 . 1 . . . . . 2 Targets Rammed 4 | . . 1 . 1 . . . . . 2 Kicked . | . . . . . . . . . . . Crushed . | . . . . . . . . . . . Highest Temperature 264 | . 20 . . . 264 64 42 24 . . Average Temperature 54 | . 7 . . . 70 38 20 10 . . Received Heat Transfer 410 | . 150 . . . 117 . 42 8 . 93 Siege Activations . | . . . . . . . . . . . Robots Corrupted . | . . . . . . . . . . . Combat Hostiles . | . . . . . . . . . . . Parts Fried 1 | . . . . . . . . 1 . . Impact Corruptions . | . . . . . . . . . . . Robots Melted . | . . . . . . . . . . . Combat Hostiles . | . . . . . . . . . . . Parts Melted 1 | . . . . . 1 . . . . . Heat Transferred 1777 | . . . . . 555 37 185 150 . 850 Parts Sabotaged . | . . . . . . . . . . . Parts Stolen . | . . . . . . . . . . . Parts Stripped . | . . . . . . . . . . . Power Chain Reactions . | . . . . . . . . . . . Missiles Intercepted . | . . . . . . . . . . . Alert | -11 -10 -10 -10 -9 -8 -7 -7 -6 -6 -6 ------- Run | Scr Mat Min Exi Min Mat Fac DSF Fac Was Fac Peak Influence 575 | 20 523 316 . 84 252 32 93 443 120 575 Initial 129 | . 13 129 . . 32 25 22 48 90 35 Average 163 | 4 388 290 . 42 120 27 54 118 96 96 Maximum Alert Level 2 | . 2 1 . . 1 . . 2 . 2 Low Security (%) 69 | 100 11 15 . 100 83 100 100 82 100 95 Level 1 20 | . 36 84 . . 16 . . 8 . . Level 2 10 | . 52 . . . . . . 8 . 4 Level 3 . | . . . . . . . . . . . Level 4 . | . . . . . . . . . . . Level 5 . | . . . . . . . . . . . High Security . | . . . . . . . . . . . Max Security . | . . . . . . . . . . . Squads Dispatched 11 | . 2 . . . 2 . 2 1 . 4 Investigation 4 | . 1 . . . 1 . . . . 2 Extermination . | . . . . . . . . . . . Reinforcement 6 | . 1 . . . 1 . 2 1 . 1 Assault . | . . . . . . . . . . . Garrison 1 | . . . . . . . . . . 1 Intercept . | . . . . . . . . . . . Searches Triggered . | . . . . . . . . . . . Construction Impeded 2 | . . . . . . . . 1 . 1 Haulers Reinforced . | . . . . . . . . . . . Active Scanning Responses . | . . . . . . . . . . . Cargo Convoy Interrupts . | . . . . . . . . . . . Stealth | -11 -10 -10 -10 -9 -8 -7 -7 -6 -6 -6 --------- Run | Scr Mat Min Exi Min Mat Fac DSF Fac Was Fac Distress Signals 4 | . 2 . . 1 1 . . . . . Communications Jammed . | . . . . . . . . . . . Distress Signals . | . . . . . . . . . . . Times Spotted 64 | . 11 7 . 4 10 . 7 9 6 10 Peak Tracking Total 6 | . 5 3 . 3 3 . 4 4 6 5 Tactical Retreats 9 | . . 1 . 2 . . . 3 . 3 Traps | -11 -10 -10 -10 -9 -8 -7 -7 -6 -6 -6 ------- Run | Scr Mat Min Exi Min Mat Fac DSF Fac Was Fac Traps Triggered 10 | . 3 . . . . . 2 3 . 2 Indirectly . | . . . . . . . . . . . Trap Hack Attempts . | . . . . . . . . . . . Triggered . | . . . . . . . . . . . Disarmed . | . . . . . . . . . . . Reprogrammed . | . . . . . . . . . . . Reused . | . . . . . . . . . . . Traps Extracted . | . . . . . . . . . . . Installed . | . . . . . . . . . . . Triggered . | . . . . . . . . . . . Machines | -11 -10 -10 -10 -9 -8 -7 -7 -6 -6 -6 ---------- Run | Scr Mat Min Exi Min Mat Fac DSF Fac Was Fac Machines Disabled 34 | . 1 . . . 1 . . 8 . 24 Max in Single Turn 16 | . 1 . . . 1 . . 5 . 16 Garrison Access 1 | . . . . . 1 . . . . . Machines Sabotaged . | . . . . . . . . . . . Garrisons Compromised . | . . . . . . . . . . . Overloaded Fab Kills . | . . . . . . . . . . . Hacking | -11 -10 -10 -10 -9 -8 -7 -7 -6 -6 -6 --------- Run | Scr Mat Min Exi Min Mat Fac DSF Fac Was Fac Machines Accessed 23 | . 5 1 1 . 8 1 . 5 . 2 Terminals 15 | . 4 1 . . 5 1 . 4 . . Fabricators . | . . . . . . . . . . . Repair Stations . | . . . . . . . . . . . Recycling Units 6 | . 1 . . . 2 . . 1 . 2 Scanalyzers . | . . . . . . . . . . . Garrison Access 1 | . . . . . 1 . . . . . Total Hacks 70 | . 22 2 1 . 22 2 . 18 . 3 Successful 35 | . 15 . 1 . 9 1 . 7 . 2 Failed 34 | . 7 2 . . 12 1 . 11 . 1 Catastrophic 3 | . . 1 . . 1 . . 1 . . Database Lockouts 1 | . . . . . 1 . . . . . Manual 55 | . 20 2 1 . 13 . . 16 . 3 Terminals 55 | . 21 2 . . 14 2 . 16 . . Fabricators . | . . . . . . . . . . . Repair Stations . | . . . . . . . . . . . Recycling Units 10 | . 1 . . . 4 . . 2 . 3 Scanalyzers . | . . . . . . . . . . . Garrison Access 4 | . . . . . 4 . . . . . Terminal Hacks 18 | . 9 . 1 . 3 1 . 4 . . Part Schematic 2 | . . . . . . . . 2 . . Robot Analysis 7 | . 6 . . . 1 . . . . . Open DSF 1 | . . . . . . 1 . . . . Terminal Index 2 | . 1 . . . . . . 1 . . Unreport Threat 1 | . . . . . 1 . . . . . Locate Traps 3 | . 2 . . . 1 . . . . . Zone Layout 1 | . . . . . . . . 1 . . EX-Prototype ID Bank 1 | . . . 1 . . . . . . . Fabricator Hacks . | . . . . . . . . . . . Repair Station Hacks . | . . . . . . . . . . . Recycling Unit Hacks . | . . . . . . . . . . . Scanalyzer . | . . . . . . . . . . . Garrison Access Hacks 1 | . . . . . 1 . . . . . Seal Access 1 | . . . . . 1 . . . . . Unauthorized Hacks 16 | . 6 . . . 5 . . 3 . 2 Terminals 12 | . 5 . . . 4 . . 3 . . Track 3 | . 2 . . . 1 . . . . . Botnet 6 | . 2 . . . 2 . . 2 . . Detonate 1 | . . . . . . . . 1 . . Operators 2 | . 1 . . . 1 . . . . . Fabricators . | . . . . . . . . . . . Repair Stations . | . . . . . . . . . . . Recycling Units 4 | . 1 . . . 1 . . . . 2 Tunnel 4 | . 1 . . . 1 . . . . 2 Scanalyzers . | . . . . . . . . . . . Garrison Access . | . . . . . . . . . . . Data Cores Recovered . | . . . . . . . . . . . Used . | . . . . . . . . . . . Hacking Detections 17 | . 4 1 . . 7 . . 5 . . Full Trace Events 1 | . . 1 . . . . . . . . Feedback Events . | . . . . . . . . . . . Feedback Blocked . | . . . . . . . . . . . Robot Schematics Acquired . | . . . . . . . . . . . Robots Built . | . . . . . . . . . . . Authchips . | . . . . . . . . . . . Time . | . . . . . . . . . . . Total Robot Build Rating . | . . . . . . . . . . . Part Schematics Acquired 2 | . . . . . . . . 2 . . Parts Built . | . . . . . . . . . . . Authchips . | . . . . . . . . . . . Time . | . . . . . . . . . . . Total Part Build Rating . | . . . . . . . . . . . Parts Repaired . | . . . . . . . . . . . Time . | . . . . . . . . . . . Parts Recycled . | . . . . . . . . . . . Recycled Matter . | . . . . . . . . . . . Retrieved Matter . | . . . . . . . . . . . Retrieved Components . | . . . . . . . . . . . Parts Scanalyzed . | . . . . . . . . . . . Part Schematics Acquired . | . . . . . . . . . . . Parts Damaged . | . . . . . . . . . . . Bothacking | -11 -10 -10 -10 -9 -8 -7 -7 -6 -6 -6 ------------ Run | Scr Mat Min Exi Min Mat Fac DSF Fac Was Fac Used RIF Installer . | . . . . . . . . . . . Robots Hacked . | . . . . . . . . . . . Non-combat . | . . . . . . . . . . . Combat . | . . . . . . . . . . . Robot Hacks Applied . | . . . . . . . . . . . Relay Couplers Released . | . . . . . . . . . . . Fabnet Peak Effective % . | . . . . . . . . . . . Robots Rewired . | . . . . . . . . . . . Allies Hacked . | . . . . . . . . . . . Hacks Repelled . | . . . . . . . . . . . Allies | -11 -10 -10 -10 -9 -8 -7 -7 -6 -6 -6 -------- Run | Scr Mat Min Exi Min Mat Fac DSF Fac Was Fac Total Allies . | . . . . . . . . . . . Largest Group . | . . . . . . . . . . . Highest-Rated Group . | . . . . . . . . . . . Highest-Rated Ally . | . . . . . . . . . . . Total Orders . | . . . . . . . . . . . Ally Attacks . | . . . . . . . . . . . Total Damage . | . . . . . . . . . . . Kills . | . . . . . . . . . . . Allies Corrupted . | . . . . . . . . . . . Allies Melted . | . . . . . . . . . . . Intel | -11 -10 -10 -10 -9 -8 -7 -7 -6 -6 -6 ------- Run | Scr Mat Min Exi Min Mat Fac DSF Fac Was Fac Robot Analysis Total 7 | . 6 . . . 1 . . . . . Derelict Logs Recovered 1 | . . 1 . . . . . . . . Drone Launches . | . . . . . . . . . . . Drone Recoveries . | . . . . . . . . . . . Exploration | -11 -10 -10 -10 -9 -8 -7 -7 -6 -6 -6 ------------- Run | Scr Mat Min Exi Min Mat Fac DSF Fac Was Fac Turns Passed 3157 | 71 477 317 256 217 740 118 135 404 128 294 Spaces Moved 2759 | 48 390 300 262 180 528 100 77 317 122 435 Core 405 | 10 . . . . . . . . 23 372 Treads 59 | . . . . . 59 . . . . . Legs . | . . . . . . . . . . . Wheels 2295 | 38 390 300 262 180 469 100 77 317 99 63 Hover . | . . . . . . . . . . . Flight . | . . . . . . . . . . . Fastest Speed 50 | 50 80 95 95 95 95 105 105 105 50 50 Average Speed 93 | 73 94 95 95 95 110 105 105 105 91 56 Slowest Speed 160 | 80 105 95 95 95 160 105 130 105 130 95 Overloaded Moves . | . . . . . . . . . . . Propulsion Burnouts . | . . . . . . . . . . . Robots Hopped . | . . . . . . . . . . . Cave-ins Triggered . | . . . . . . . . . . . Exploration Rate (%) 44 | 4 67 73 65 32 42 4 93 13 74 17 Regions Visited 10 Branch Regions 3 Pre-discovered Areas 4 | . 1 . . . 1 . . . . 2 Known Exits Taken 1 | . . . . . . 1 . . . . Unknown Exits Taken 6 | 1 1 1 1 1 1 . . . . . Scrap Searched 4 | . . 1 . 3 . . . . . . Spaces Dug 16 | . 2 . . . . . 1 9 . 4 Terrain Destroyed 275 | . 73 9 . 26 22 . 1 72 . 72 Melee 14 | . . . . . . . 1 9 . 4 Projectile 2 | . 2 . . . . . . . . . AOE 259 | . 71 9 . 26 22 . . 63 . 68 Terrain Rammed . | . . . . . . . . . . . Walls Destroyed . | . . . . . . . . . . . Machines Disabled . | . . . . . . . . . . . Actions | -11 -10 -10 -10 -9 -8 -7 -7 -6 -6 -6 --------- Run | Scr Mat Min Exi Min Mat Fac DSF Fac Was Fac Total 3132 | 68 461 318 271 208 623 112 113 356 134 468 Wait 12 | . 1 1 . . 1 . . 2 4 3 Move 2750 | 47 389 299 261 179 527 99 76 317 121 435 Hop . | . . . . . . . . . . . Pick Up 57 | 8 12 . 2 4 13 3 5 6 1 3 Fast Attach 38 | 6 2 2 . . 4 1 3 3 5 12 Attach 25 | 1 1 . 2 1 6 3 3 2 1 5 Detach 10 | . 2 1 2 . 2 1 2 . . . Swap 73 | . 18 6 1 9 27 1 6 3 2 . Drop 54 | . 13 2 3 5 15 3 7 4 . 2 Fire 90 | 6 23 6 . 9 28 1 8 9 . . Melee 19 | . . . . . . . 3 10 . 6 Ram 4 | . . 1 . 1 . . . . . 2 Kick . | . . . . . . . . . . . Crush . | . . . . . . . . . . . Escape Stasis . | . . . . . . . . . . . Rewire . | . . . . . . . . . . . Trap . | . . . . . . . . . . . Miscellaneous . | . . . . . . . . . . . Route ------- -11/Scrapyard -10/Materials (discovered 2 exits: [*Mat] / *Min) -10/Mines (discovered 2 exits: [*Mat] / *Exi) -10/Exiles -9/Mines -8/Materials -7/Factory -7/DSF -6/Factory -6/Waste -6/Factory History --------- Turn | Location | Event 9 | -11/Scrapyard | Discovered new exit (range 15) 72 | -11/Scrapyard | Entered Materials 204 | -10/Materials | Discovered new exit (range 3) 300 | -10/Materials | Build established: Mutant 541 | -10/Materials | Discovered new exit (range 9) 549 | -10/Materials | Entered Mines 607 | -10/Mines | Found a damaged Exp. Sensor Array with a note attached 610 | -10/Mines | Found Prototype Device 610 | -10/Mines | Identified Exp. Sensor Array 707 | -10/Mines | Discovered new exit (range 6) 771 | -10/Mines | Learned Materials terminal intel 862 | -10/Mines | Deemed a non-threat by the Exiles lab entrance 862 | -10/Mines | Discovered new exit (range 5) 866 | -10/Mines | Entered Exiles 889 | -10/Exiles | Met 8R-AWN 904 | -10/Exiles | Met EX-HEX 972 | -10/Exiles | Met EX-BIN 983 | -10/Exiles | Aligned with FarCom system 983 | -10/Exiles | Given EX-Vault access code 1005 | -10/Exiles | Opened EX-Vault 1012 | -10/Exiles | Found 0b10 Alert Chip 1033 | -10/Exiles | Warned to stay clear of 0b10 Research branches 1112 | -10/Exiles | Discovered new exit (range 10) 1122 | -10/Exiles | Left Exiles lab with 0b10 Alert Chip 1122 | -10/Exiles | Entered Mines 1204 | -9/Mines | YI-UF0 nonchalantly dropped a Grenade Launcher on the ground 1205 | -9/Mines | Assembled infested the area 1210 | -9/Mines | Assisted by a Guerilla fighting off Assembled 1252 | -9/Mines | Core integrity fell below 50% 1330 | -9/Mines | Discovered new exit (range 10) 1339 | -9/Mines | Entered Materials 1339 | -8/Materials | Evolved 4 slots: Propulsion x1, Utility x2, Weapon x1 1340 | -8/Materials | Loaded intel: 12 terminal locations 1558 | -8/Materials | Central database locked down 1679 | -8/Materials | Build established: Scavenger-Skirmisher 1684 | -8/Materials | Discovered new exit (range 7) 2079 | -8/Materials | Entered Factory 2079 | -7/Factory | Evolved 2 slots: Utility x2 2101 | -7/Factory | Build established: Skirmisher 2194 | -7/Factory | Identified exit to DSF 2197 | -7/Factory | Entered DSF 2237 | -7/DSF | Additional patrols routed to DSF 2315 | -7/DSF | Discovered new exit (range 14) 2332 | -7/DSF | Entered Factory 2332 | -6/Factory | Evolved 2 slots: Propulsion x1, Utility x1 2736 | -6/Factory | Sucked down chute 2736 | -6/Factory | Entered Waste 2758 | -6/Waste | Spotted C-40 Crusher 2758 | -6/Waste | Spotted C-40 Crusher 2770 | -6/Waste | Spotted C-40 Crusher 2785 | -6/Waste | Spotted C-40 Crusher 2786 | -6/Waste | Spotted C-40 Crusher 2823 | -6/Waste | Spotted C-40 Crusher 2835 | -6/Waste | Crushed by Compactor (1 part destroyed, 1 dropped) 2838 | -6/Waste | Crushed by Compactor (1 part destroyed, 2 dropped) 2844 | -6/Waste | Crushed by Compactor (1 part destroyed, 1 dropped) 2849 | -6/Waste | Crushed by Compactor (1 part destroyed, 1 dropped) 2850 | -6/Waste | Crushed by Compactor (1 part destroyed, 1 dropped) 2851 | -6/Waste | Released all parts (7) 2856 | -6/Waste | Discovered new exit (range 16) 2864 | -6/Waste | Entered Factory 2881 | -6/Factory | Lost 7 parts (4n2u1w) 3146 | -6/Factory | Garrison activated, responded to threat 3149 | -6/Factory | Released all parts (11) 3158 | -6/Factory | Released all parts (1) 3158 | -6/Factory | Self-destructed Last Messages --------------- 03148_ Destroyed Wheel. 03148_ Fusion Modulator explodes. 03148_ Destroyed Lgt. Angular Momentum Engine. 03148_ U-05 Engineer destroyed. 03148_ Destroyed Unknown Leg. 03148_ U-05 Engineer destroyed. 03148_ Fusion Modulator explodes. 03148_ Nuclear Reactor explodes. 03149_ Released Chainsword. 03149_ Released 0b10 Alert Chip. 03149_ Released Structural Scanner. 03149_ Released Imp. Melee Analysis Suite. 03149_ Released Imp. Treads. 03149_ Released Lgt. Treads. 03149_ Released Broken Adv. Signal Interpreter. 03149_ Released Terrain Scan Processor. 03149_ Released Chainsword. 03155_ Acquired Hacking Suite. 03158_ Connecting with Terminal... 03158_ Released Hacking Suite. Map ----- +----------------------------------------------------+ | ###### ??????????? | | """ """ """ "" """????????????? | | ###### """ """ "" ????????????????? | | ! # """ """ ?????????????? | | ! # # ????????? | | # """ = ????????? | | # """ ????????? | | """ # ^ "" ???????? | | """" + ???????? | | """" # " "??????? | | # " ??????? | | """ ##### " ?????? | | """" ##### ?????? | | """" ##?"" " ??????? | | ##"?? g "##???????? | | ##+####""" // "###??????? | | #### =/! " ##??????? | | #### = "###??????? | | " """ ####+## "" # """""##???????? | | " """ ##? = #?????? | | " """ ##?????? ## ### + """"""" #?????? | | ##??????? # # # """""?????????? | | ##???????"" "?? #"" # # """"??????????? | | ########????????????? #"" # # """???????????? | | ########????????????? #"T # # ??????????? | | ##????????????????????#""@ # # """""?????????? | | ##????????????????????#"" + + ! """"??????????? | | ##????????????????????# ### """???????????? | | ##????????????????????# ### ""????????????? | | ##????????????????????# !#?? ????????????? | | ##????????????????????######??#######????????????? | | ##???????????????????????????????????????????????? | | ##???????????????????????????????????????????????? | | ##???????????????????????????????????????????????? | | ##???????????????????????????????????????????????? | | ##???????????????????????????????????????????????? | | ##???????????????????????????????????????????????? | | ##???????????????????????????????????????????????? | | ##????????????????????????????Y??????????????????? | | ##???????????????????????????????????????????????? | | ##???????????????????????????????????????????????? | | ##???????????????????????????????????????????????? | | ##???????????????????????????????????????????????? | | ##???????????????????????????????????????????????? | | ##???????????????????????????????????????????????? | | ?????????????????????????????????????????????????? | | ?????????????????????????????????????????????????? | | ?????????????????????????????????????????????????? | | ?????????????????????????????????????????????????? | | ?????????????????????????????????????????????????? | +----------------------------------------------------+ Best States ------------- Heat Dissipation 37 Energy Generation 18 Energy Capacity 275 Matter Stores 300 Matter Capacity 500 Sight Range 20 Terrain Scan Range 16 Terrain Scan Density 110 Jamming Range 12 Armor Coverage 225 Resistance: KI 20 Resistance: TH 20 Evasion (%) 50 Melee Accuracy 12 Core Analysis 6 Recoil Reduction 3 Offensive Hacking 10 Defensive Hacking 10 Authchip Count 1 Item Schematics ----------------- Hcp. Storage Unit | -6/Factory | Hacked Huge Storage Unit | -6/Factory | Hacked Robot Schematics ------------------ None Fabricated ------------ Nothing Alien Tech Used ----------------- None Achievements -------------- None Challenges ------------ None Game ------ Seed DisruptionMobileReactor Manual? 0 Play Time 00:48:51 Cumulative 718.4 hours Start 2022.07.03 @ 01:12:05 End 2022.07.03 @ 02:02:23 Sessions 1 Manual Loads 0 Difficulty Rogue Special Mode None Game No. 381 Rogue 254 Adventurer 125 Explorer 2 Win Type - Total 84 Types 72/5/4/1/1/0/0/0/1 Lore% 82 Gallery% 89 Achievement% 76 Wizard Run 0 Options --------- ASCII 0 Keyboard 1 Movement Numpad Keybinds 0 Fullscreen 1 Font 36/TerminusFine Map View 76x50 Tactical HUD 1 Map Filters NONE Filters NONE Steam 1 RUN: 507bd900-b968-4704-9f93-583171d1f314